bitfinex-derivatives/quotes_BTCF0:USTF0_20260107
["timestamp","ask_amount","ask_price","bid_price","bid_amount"]
[1767814515138,0.0931792,91067.0,91054.0,0.010994]
[1767814515338,0.22694131,91064.0,91052.0,0.010994]
[1767814515534,0.13376211,91062.0,91044.0,0.09464265]
[1767814515840,0.22694131,91062.0,91057.0,0.010993]
[1767814516043,0.22694131,91062.0,91044.0,0.09464265]
[1767814516044,0.0931792,91062.0,91055.0,0.010994]
[1767814516232,0.0931792,91062.0,91057.0,0.010993]
[1767814516433,0.09344,91063.0,91057.0,0.010993]
[1767814516632,0.09344,91065.0,91048.0,0.09464265]
[1767814516827,0.13376211,91070.0,91049.0,0.09464265]
[1767814517034,0.09344,91069.0,91061.0,0.010993]
[1767814517245,0.09344,91069.0,91058.0,0.010993]
[1767814517445,0.18646022,91069.0,91058.0,0.010993]
[1767814517741,0.09302022,91068.0,91058.0,0.010993]
[1767814517938,0.09302022,91068.0,91059.0,0.010993]
[1767814518139,0.09302022,91068.0,91060.0,0.010993]
[1767814518345,0.09302022,91068.0,91057.0,0.010993]
[1767814519343,0.0931792,91073.0,91044.0,0.09687774]
[1767814519344,0.0931792,91087.0,91044.0,0.010995]
[1767814519543,0.09344,91090.0,91081.0,0.010991]
[1767814519844,0.09344,91092.0,91083.0,0.01099]
[1767814520042,0.09344,91092.0,91085.0,0.01099]
[1767814520547,0.09344,91092.0,91085.0,0.00879409]
[1767814520749,0.23792931,91100.0,91087.0,0.01099]
[1767814520750,0.32038131,91100.0,91087.0,0.01099]
[1767814521446,0.32038131,91100.0,91087.0,0.00949]
[1767814521642,0.0931792,91106.0,91094.0,0.010989]
[1767814521839,0.0931792,91106.0,91083.0,0.19152039]
[1767814522043,0.0931792,91106.0,91096.0,0.010989]
[1767814522248,0.09344,91108.0,91089.0,0.01099]
[1767814522448,0.09344,91108.0,91091.0,0.09464265]
[1767814522754,0.00219518,91109.0,91095.0,0.19152039]
[1767814523450,0.09344,91116.0,91095.0,0.19152039]
[1767814524247,0.010987,91114.0,91095.0,0.19152039]
[1767814524748,0.010987,91113.0,91095.0,0.19152039]
[1767814525254,0.010988,91107.0,91089.0,0.09464265]
[1767814525638,0.09302022,91112.0,91090.0,0.09464265]
[1767814525839,0.010987,91108.0,91091.0,0.09464265]
[1767814527552,0.010988,91105.0,91091.0,0.09464265]
[1767814528358,0.0931792,91114.0,91091.0,0.09464265]
[1767814528651,0.18619942,91113.0,91091.0,0.09464265]
[1767814529754,0.010987,91111.0,91091.0,0.09464265]
[1767814530056,0.010987,91111.0,91094.0,0.09687774]
[1767814530948,0.010988,91100.0,91094.0,0.09687774]
[1767814531252,0.010988,91102.0,91094.0,0.09687774]
[1767814531844,0.010988,91100.0,91094.0,0.09687774]
[1767814532855,0.010987,91110.0,91088.0,0.09344]
[1767814533053,0.19089713,91111.0,91088.0,0.09344]
[1767814533356,0.010989,91097.0,91088.0,0.09344]
[1767814533757,0.010988,91100.0,91088.0,0.09344]
[1767814534443,0.010988,91106.0,91088.0,0.09344]
[1767814534655,0.09954654,91112.0,91088.0,0.09344]
[1767814534953,0.010988,91101.0,91089.0,0.09172862]
[1767814535152,0.010988,91101.0,91090.0,0.09172862]
[1767814535366,0.010988,91099.0,91090.0,0.09172862]
[1767814535748,0.010988,91102.0,91090.0,0.09172862]
[1767814535948,0.010988,91105.0,91092.0,0.09172862]
[1767814536252,0.010988,91105.0,91093.0,0.09172862]
[1767814536446,0.010987,91114.0,91093.0,0.09172862]
[1767814536758,0.010988,91101.0,91093.0,0.09172862]
[1767814537257,0.010989,91097.0,91093.0,0.09172862]
[1767814537457,0.010989,91095.0,91092.0,0.09209854]
[1767814537758,0.010989,91098.0,91088.0,0.09344]
[1767814538260,0.010988,91106.0,91088.0,0.09344]
[1767814538559,0.010989,91093.0,91089.0,0.0934]
[1767814538758,0.010989,91093.0,91079.0,0.010991]
[1767814538951,0.010988,91101.0,91086.0,0.01099]
[1767814539147,0.010988,91103.0,91080.0,0.20317731]
[1767814539455,0.010988,91101.0,91090.0,0.09172862]
[1767814539755,0.010987,91111.0,91094.0,0.09172862]
[1767814539954,0.010988,91104.0,91097.0,0.09172862]
[1767814540745,0.19089713,91118.0,91097.0,0.09172862]
[1767814540946,0.010988,91102.0,91097.0,0.09172862]
[1767814541152,0.010988,91102.0,91097.0,0.18382716]
[1767814541456,0.19089713,91118.0,91097.0,0.18382716]
[1767814541457,0.010988,91104.0,91097.0,0.18382716]
[1767814542553,0.010987,91112.0,91097.0,0.18382716]
[1767814542752,0.010989,91099.0,91091.0,0.0934]
[1767814542952,0.19089713,91103.0,91091.0,0.0934]
[1767814543254,0.010988,91099.0,91090.0,0.0934]
[1767814543456,0.010988,91102.0,91090.0,0.0934]
[1767814543651,0.010988,91105.0,91090.0,0.0934]
[1767814544049,0.010988,91105.0,91090.0,0.104389]
[1767814544254,0.09954654,91114.0,91090.0,0.104389]
[1767814544659,0.010988,91102.0,91090.0,0.0934]
[1767814544852,0.010988,91103.0,91091.0,0.03590414]
[1767814545255,0.010988,91101.0,91091.0,0.03590414]
[1767814547860,0.010988,91102.0,91091.0,0.03590414]
[1767814548454,0.00219518,91109.0,91091.0,0.03590414]
[1767814548455,0.010988,91103.0,91091.0,0.03590414]
[1767814548763,0.00219518,91109.0,91093.0,0.03579376]
[1767814548955,0.010988,91103.0,91093.0,0.03579376]
[1767814549352,0.18479059,91116.0,91090.0,0.0934]
[1767814549353,0.010987,91112.0,91098.0,0.10308754]
[1767814549664,0.09135059,91124.0,91098.0,0.10308754]
[1767814549665,0.010987,91111.0,91098.0,0.09209854]
[1767814549854,0.010986,91122.0,91098.0,0.09209854]
[1767814550049,0.09954654,91124.0,91099.0,0.21284999]
[1767814550374,0.010987,91108.0,91100.0,0.0934]
[1767814550567,0.010986,91119.0,91100.0,0.0934]
[1767814550865,0.010986,91119.0,91100.0,0.20316345]
[1767814551253,0.010986,91122.0,91100.0,0.29526199]
[1767814551451,0.09954654,91130.0,91106.0,0.09209854]
[1767814551660,0.0934,91132.0,91110.0,0.10308554]
[1767814551855,0.0934,91132.0,91112.0,0.09209854]
[1767814552564,0.010985,91125.0,91112.0,0.09209854]
[1767814552750,0.010986,91123.0,91112.0,0.09209854]
[1767814553860,0.010985,91126.0,91112.0,0.10308554]
[1767814554865,0.010985,91126.0,91112.0,0.09209854]
[1767814555655,0.010985,91126.0,91112.0,0.08809854]
[1767814556060,0.010985,91124.0,91112.0,0.08809854]
[1767814556469,0.010985,91127.0,91112.0,0.08809854]
[1767814556867,0.010985,91125.0,91112.0,0.08809854]
[1767814557962,0.09954654,91136.0,91114.0,0.09209854]
[1767814557963,0.010985,91128.0,91114.0,0.09209854]
[1767814558563,0.00219446,91139.0,91117.0,0.10308454]
[1767814558769,0.010985,91131.0,91117.0,0.09209854]
[1767814558972,0.010985,91129.0,91117.0,0.09209854]
[1767814559164,0.010985,91132.0,91117.0,0.09209854]
[1767814559371,0.010985,91129.0,91117.0,0.09209854]
[1767814559559,0.010985,91127.0,91117.0,0.09209854]
[1767814559756,0.010985,91127.0,91111.0,0.104387]
[1767814559757,0.010985,91125.0,91111.0,0.19648554]
[1767814559965,0.010985,91125.0,91112.0,0.09209854]
[1767814560172,0.010985,91125.0,91113.0,0.09209854]
[1767814560672,0.09954654,91136.0,91113.0,0.09209854]
[1767814560673,0.09954654,91136.0,91116.0,0.010986]
[1767814560874,0.09954654,91136.0,91114.0,0.20184152]
[1767814561173,0.010985,91129.0,91114.0,0.10308554]
[1767814561373,0.010985,91129.0,91115.0,0.10973816]
[1767814561873,0.010986,91118.0,91108.0,0.06083844]
[1767814562066,0.010986,91121.0,91103.0,0.010988]
[1767814562269,0.09744967,91118.0,91109.0,0.10974298]
[1767814562468,0.010986,91117.0,91104.0,0.09336]
[1767814562668,0.010986,91120.0,91104.0,0.09336]
[1767814562874,0.010986,91121.0,91105.0,0.10974298]
[1767814563167,0.10843567,91124.0,91108.0,0.010987]
[1767814563358,0.09744967,91124.0,91105.0,0.10574298]
[1767814563563,0.09744967,91124.0,91104.0,0.09336]
[1767814563564,0.010985,91128.0,91113.0,0.010987]
[1767814563974,0.09744967,91131.0,91110.0,0.09371669]
[1767814564969,0.09744967,91131.0,91110.0,0.09626755]
[1767814565174,0.010985,91125.0,91110.0,0.10725455]
[1767814565382,0.010986,91121.0,91105.0,0.00255086]
[1767814565576,0.010986,91121.0,91106.0,0.09336]
[1767814565767,0.010986,91119.0,91105.0,0.10974478]
[1767814565967,0.010986,91122.0,91106.0,0.09336]
[1767814566276,0.09815753,91125.0,91106.0,0.09336]
[1767814566277,0.010985,91125.0,91110.0,0.010987]
[1767814566665,0.09744967,91130.0,91112.0,0.010987]
[1767814566865,0.010985,91124.0,91109.0,0.010987]
[1767814567071,0.010985,91124.0,91111.0,0.010987]
[1767814567574,0.010985,91124.0,91108.0,0.00255086]
[1767814567575,0.010986,91124.0,91108.0,0.01353786]
[1767814568273,0.010985,91127.0,91110.0,0.010987]
[1767814568470,0.010985,91127.0,91110.0,0.00015869]
[1767814569070,0.010985,91127.0,91112.0,0.010987]
[1767814569772,0.010985,91126.0,91112.0,0.010987]
[1767814570072,0.09744967,91123.0,91111.0,0.09336]
[1767814570378,0.1956072,91123.0,91111.0,0.09336]
[1767814570974,0.09744967,91123.0,91111.0,0.09336]
[1767814571171,0.010986,91119.0,91111.0,0.08936]
[1767814571368,0.1956072,91123.0,91101.0,0.00015068]
[1767814571580,0.010987,91112.0,91102.0,0.09336]
[1767814571769,0.010987,91112.0,91105.0,0.109749]
[1767814571972,0.010987,91112.0,91106.0,0.09336]
[1767814572173,0.010987,91112.0,91106.0,0.09319598]
[1767814572884,0.010987,91115.0,91099.0,0.010988]
[1767814573177,0.09744967,91111.0,91100.0,0.09336]
[1767814573368,0.010988,91104.0,91091.0,0.0788762]
[1767814573573,0.09744967,91106.0,91094.0,0.0788762]
[1767814573777,0.09744967,91106.0,91092.0,0.09336]
[1767814574476,0.010988,91105.0,91092.0,0.09336]
[1767814574676,0.09744967,91105.0,91092.0,0.09336]
[1767814575078,0.010988,91103.0,91092.0,0.09336]
[1767814575472,0.09744967,91105.0,91090.0,0.005]
[1767814575674,0.09744967,91105.0,91092.0,0.09336]
[1767814576180,0.010988,91104.0,91092.0,0.09336]
[1767814576377,0.010989,91095.0,91090.0,0.005]
[1767814576573,0.010989,91098.0,91090.0,0.0049485]
[1767814578885,0.09744967,91102.0,91090.0,0.0049485]
[1767814579086,0.010989,91098.0,91090.0,0.0049485]
[1767814579380,0.09744967,91098.0,91088.0,7e-07]
[1767814579682,0.10843867,91098.0,91087.0,0.09336]
[1767814580071,0.09744967,91110.0,91087.0,0.09336]
[1767814580276,0.09744967,91103.0,91087.0,0.09336]
[1767814580678,0.010989,91093.0,91087.0,0.09336]
[1767814580983,0.09744967,91100.0,91087.0,0.09336]
[1767814581175,0.09744967,91100.0,91085.0,0.06033816]
[1767814581176,0.010989,91093.0,91085.0,0.06033816]
[1767814581372,0.010989,91093.0,91081.0,0.00153497]
[1767814581581,0.09744967,91097.0,91082.0,0.09336]
[1767814581886,0.09744967,91097.0,91083.0,0.09336]
[1767814581887,0.010989,91092.0,91083.0,0.09336]
[1767814582380,0.010989,91092.0,91079.0,0.06257695]
[1767814582683,0.010989,91092.0,91081.0,0.09336]
[1767814582977,0.09815753,91095.0,91081.0,0.09336]
[1767814582978,0.10914653,91095.0,91081.0,0.09336]
[1767814583185,0.010989,91095.0,91081.0,0.09336]
[1767814583386,0.09744967,91097.0,91081.0,0.09336]
[1767814583578,0.010989,91098.0,91086.0,0.00522971]
[1767814584972,0.09744967,91104.0,91086.0,0.00522971]
[1767814585175,0.010989,91095.0,91082.0,0.0072084]
[1767814585376,0.010989,91098.0,91082.0,0.0072084]
[1767814585684,0.010989,91096.0,91082.0,0.11698752]
[1767814587079,0.09744967,91103.0,91083.0,0.00737923]
[1767814587286,0.1956072,91103.0,91083.0,0.00737923]
[1767814587777,0.09336,91108.0,91084.0,0.0934]
[1767814588982,0.09336,91108.0,91084.0,0.0894]
[1767814589181,0.010989,91094.0,91084.0,0.0894]
[1767814589389,0.09336,91108.0,91081.0,0.06192431]
[1767814589691,0.10843967,91088.0,91077.0,0.0934]
[1767814589883,0.01099,91088.0,91077.0,0.0934]
[1767814591782,0.01099,91086.0,91077.0,0.0934]
[1767814592684,0.09744967,91093.0,91077.0,0.0934]
[1767814593187,0.09744967,91093.0,91078.0,0.09705937]
[1767814593892,0.010989,91092.0,91078.0,0.09705937]
[1767814594486,0.01099,91090.0,91078.0,0.09705937]
[1767814594790,0.010988,91103.0,91088.0,0.09736303]
[1767814595088,0.09954445,91107.0,91088.0,0.09736303]
[1767814595287,0.09954445,91106.0,91088.0,0.09736303]
[1767814595681,0.010988,91102.0,91088.0,0.09736303]
[1767814595885,0.010988,91106.0,91093.0,0.09736303]
[1767814596083,0.010988,91104.0,91093.0,0.09736303]
[1767814596593,0.23327474,91110.0,91090.0,0.0934]
[1767814597294,0.09954445,91110.0,91091.0,0.09514789]
[1767814597482,0.23327474,91110.0,91091.0,0.09514789]
[1767814597687,0.010988,91103.0,91091.0,0.09514789]
[1767814598893,0.010988,91106.0,91091.0,0.09514789]
[1767814599695,0.23327474,91110.0,91091.0,0.09514789]
[1767814600596,0.010988,91104.0,91091.0,0.09514789]
[1767814601493,0.0934,91118.0,91096.0,0.09602798]
[1767814601692,0.20393045,91118.0,91101.0,0.09602798]
[1767814601888,0.19294445,91118.0,91102.0,0.010988]
[1767814602082,0.11053045,91118.0,91103.0,0.09602798]
[1767814602298,0.010986,91118.0,91103.0,0.09602798]
[1767814602596,0.13373029,91120.0,91103.0,0.09602798]
[1767814603000,0.010986,91117.0,91103.0,0.09602798]
[1767814603495,0.010986,91121.0,91106.0,0.010988]
[1767814603699,0.09954445,91124.0,91108.0,0.010987]
[1767814603888,0.0934,91126.0,91112.0,0.010987]
[1767814604092,0.0934,91126.0,91110.0,0.09596522]
[1767814604093,0.09954445,91130.0,91111.0,0.09596522]
[1767814604488,0.0934,91133.0,91113.0,0.10695222]
[1767814604489,0.010985,91131.0,91113.0,0.10695222]
[1767814604696,0.010985,91129.0,91114.0,0.09596522]
[1767814605204,0.010985,91132.0,91115.0,0.09607047]
[1767814606002,0.010985,91130.0,91115.0,0.09607047]
[1767814606592,0.010985,91128.0,91115.0,0.09607047]
[1767814607005,0.010985,91131.0,91115.0,0.09607047]
[1767814607398,0.010985,91131.0,91115.0,0.09207047]
[1767814608707,0.010985,91129.0,91115.0,0.09207047]
[1767814609207,0.010985,91132.0,91115.0,0.09207047]
[1767814609403,0.09954445,91136.0,91115.0,0.09207047]
[1767814610305,0.010985,91132.0,91115.0,0.09207047]
[1767814610508,0.010985,91130.0,91115.0,0.09207047]
[1767814612612,0.010985,91130.0,91115.0,0.10305647]
[1767814612817,0.010985,91130.0,91112.0,0.0934]
[1767814612818,0.010984,91133.0,91117.0,0.10199339]
[1767814613212,0.010985,91131.0,91117.0,0.09100739]
[1767814614813,0.010984,91136.0,91121.0,0.09096384]
[1767814615014,0.010984,91136.0,91124.0,0.09096384]
[1767814615218,0.00219446,91139.0,91127.0,0.09096384]
[1767814615518,0.09954445,91148.0,91132.0,0.09096384]
[1767814615712,0.010982,91151.0,91133.0,0.09096384]
[1767814616018,0.010982,91149.0,91133.0,0.09096384]
[1767814616320,0.13373029,91160.0,91132.0,0.09336]
[1767814616321,0.10181712,91159.0,91139.0,0.22469413]
[1767814616615,0.10181712,91159.0,91132.0,0.09336]
[1767814616616,0.010981,91163.0,91145.0,0.010983]
[1767814617213,0.09083612,91164.0,91144.0,0.09336]
[1767814617417,0.010981,91165.0,91145.0,0.18131506]
[1767814617602,0.010981,91162.0,91146.0,0.09083829]
[1767814618514,0.010979,91178.0,91152.0,0.09083829]
[1767814618706,0.19038057,91192.0,91169.0,0.09281524]
[1767814619015,0.010978,91186.0,91169.0,0.09281524]
[1767814619318,0.009478,91184.0,91169.0,0.09281524]
[1767814619614,0.009478,91184.0,91166.0,0.18383677]
[1767814619806,0.010979,91179.0,91166.0,0.18383677]
[1767814620113,0.010979,91179.0,91166.0,0.09336]
[1767814620820,0.19038057,91187.0,91166.0,0.09336]
[1767814621320,0.010979,91181.0,91166.0,0.09336]
[1767814621704,0.09260795,91186.0,91166.0,0.09336]
[1767814622017,0.010979,91178.0,91166.0,0.09336]
[1767814622718,0.18373029,91190.0,91153.0,0.59496]
[1767814622719,0.19001269,91179.0,91167.0,0.09336]
[1767814622902,0.19001269,91179.0,91166.0,0.09336]
[1767814623715,0.19001269,91179.0,91157.0,0.18855971]
[1767814623716,0.01098,91171.0,91157.0,0.18855971]
[1767814623915,0.01098,91171.0,91158.0,0.09336]
[1767814624211,0.010979,91174.0,91158.0,0.29554054]
[1767814624409,0.0977511,91179.0,91158.0,0.29554054]
[1767814624614,0.010979,91178.0,91158.0,0.20218054]
[1767814624816,0.010981,91163.0,91157.0,0.09336]
[1767814625120,0.010981,91163.0,91146.0,0.09606076]
[1767814625306,0.010981,91163.0,91149.0,0.09249895]
[1767814625819,0.01098,91172.0,91152.0,0.18855971]
[1767814626021,0.01098,91172.0,91156.0,0.09249895]
[1767814626205,0.01098,91172.0,91157.0,0.09249895]
[1767814626411,0.010979,91178.0,91161.0,0.18855971]
[1767814626610,0.010979,91178.0,91164.0,0.09249895]
[1767814626812,0.01098,91171.0,91159.0,0.09249895]
[1767814628223,0.01098,91171.0,91158.0,0.09336]
[1767814629219,0.01088,91171.0,91158.0,0.09336]
[1767814629523,0.010979,91174.0,91159.0,0.09249895]
[1767814629723,0.01098,91172.0,91159.0,0.18855971]
[1767814630120,0.01098,91172.0,91160.0,0.09249895]
[1767814631030,0.01098,91170.0,91160.0,0.09249895]
[1767814631220,0.01098,91166.0,91159.0,0.09606076]
[1767814631419,0.010981,91164.0,91158.0,0.09336]
[1767814631620,0.010981,91164.0,91159.0,0.09249895]
[1767814631923,0.01098,91167.0,91159.0,0.09249895]
[1767814632228,0.0977511,91177.0,91159.0,0.09249895]
[1767814632523,0.0977011,91177.0,91159.0,0.09249895]
[1767814632723,0.010979,91177.0,91160.0,0.09249895]
[1767814632931,0.010978,91187.0,91172.0,0.09249895]
[1767814633124,0.060978,91190.0,91172.0,0.09249895]
[1767814633320,0.010978,91182.0,91169.0,0.18581895]
[1767814633630,0.010979,91180.0,91170.0,0.09249895]
[1767814633923,0.01098,91172.0,91170.0,0.09332]
[1767814634319,0.01098,91172.0,91166.0,0.09332]
[1767814634520,0.09226159,91200.0,91162.0,0.09249895]
[1767814634826,0.0977511,91189.0,91168.0,0.09249895]
[1767814635018,0.09226159,91195.0,91173.0,0.09249895]
[1767814635019,0.0977511,91195.0,91173.0,0.09249895]
[1767814635221,0.0977511,91195.0,91169.0,0.09332]
[1767814635222,0.1087281,91195.0,91175.0,0.09249895]
[1767814635414,0.010977,91193.0,91175.0,0.09249895]
[1767814635928,0.060977,91190.0,91175.0,0.09249895]
[1767814636424,0.1477511,91190.0,91170.0,0.09249895]
[1767814636723,0.010978,91183.0,91172.0,0.10967016]
[1767814636922,0.1087291,91183.0,91172.0,0.10967016]
[1767814637128,0.010978,91186.0,91170.0,0.09249895]
[1767814637529,0.010978,91186.0,91171.0,0.09249895]
[1767814638121,0.010978,91186.0,91171.0,0.09030521]
[1767814638429,0.010978,91186.0,91169.0,0.09332]
[1767814638430,0.1087291,91189.0,91172.0,0.10967618]
[1767814638830,0.1087291,91189.0,91169.0,0.09332]
[1767814639128,0.1087291,91189.0,91170.0,0.10967497]
[1767814640131,0.1087291,91189.0,91171.0,0.09249895]
[1767814641031,0.1087291,91189.0,91172.0,0.20217272]
[1767814641324,0.1087291,91189.0,91173.0,0.09249895]
[1767814641524,0.1087291,91189.0,91174.0,0.09332]
[1767814642222,0.010978,91186.0,91174.0,0.09332]
[1767814643127,0.010978,91186.0,91174.0,0.18581895]
[1767814643320,0.0977511,91189.0,91174.0,0.18581895]
[1767814643930,0.09226159,91178.0,91143.0,0.07887686]
[1767814644129,0.0977511,91167.0,91150.0,0.09332]
[1767814644329,0.0977511,91160.0,91147.0,0.09332]
[1767814644526,0.0977011,91160.0,91146.0,0.010983]
[1767814644725,0.01098,91167.0,91148.0,0.010982]
[1767814644920,0.09226159,91183.0,91149.0,0.01486697]
[1767814645127,0.09226159,91179.0,91152.0,0.010982]
[1767814645330,0.01098,91169.0,91153.0,0.09332]
[1767814645531,0.01098,91167.0,91153.0,0.20302024]
[1767814645930,0.01098,91167.0,91153.0,0.09332]
[1767814646330,0.01098,91170.0,91154.0,0.10970024]
[1767814646530,0.0977511,91169.0,91153.0,0.09332]
[1767814646731,0.01098,91167.0,91153.0,0.09332]
[1767814647239,0.0977511,91169.0,91153.0,0.09332]
[1767814648437,0.1087311,91169.0,91153.0,0.09332]
[1767814649235,0.13351093,91170.0,91138.0,0.08986086]
[1767814649236,0.09226159,91168.0,91138.0,0.08986086]
[1767814649542,0.0977511,91162.0,91140.0,0.10969603]
[1767814649931,0.0977511,91162.0,91139.0,0.11912778]
[1767814649932,0.0977511,91162.0,91141.0,0.09332]
[1767814650542,0.0977511,91162.0,91146.0,0.010983]
[1767814650933,0.13351093,91160.0,91146.0,0.010983]
[1767814651133,0.23126203,91160.0,91148.0,0.010982]
[1767814651333,0.23126203,91160.0,91150.0,0.010982]
[1767814651636,0.0977511,91160.0,91142.0,0.010983]
[1767814651845,0.0977511,91160.0,91149.0,0.010982]
[1767814652744,0.0977511,91160.0,91151.0,0.010982]
[1767814653541,0.0977511,91160.0,91140.0,0.13351093]
[1767814653542,0.09742446,91186.0,91161.0,0.02571586]
[1767814653738,0.09742446,91186.0,91174.0,0.010979]
[1767814654141,0.09742446,91186.0,91170.0,0.01098]
[1767814654335,0.09742446,91186.0,91164.0,0.09332]
[1767814654848,0.18906348,91186.0,91170.0,0.01098]
[1767814655049,0.18906348,91186.0,91164.0,0.09332]
[1767814655050,0.09742446,91185.0,91167.0,0.01098]
[1767814655350,0.09742446,91184.0,91171.0,0.01098]
[1767814655848,0.09742446,91184.0,91171.0,0.00698]
[1767814657952,0.09742446,91184.0,91164.0,0.09332]
[1767814658140,0.09742446,91184.0,91172.0,0.01098]
[1767814659161,0.09742446,91183.0,91164.0,0.09332]
[1767814659343,0.09742446,91181.0,91168.0,0.01098]
[1767814659742,0.09742446,91182.0,91165.0,0.01098]
[1767814659937,0.09163902,91181.0,91165.0,0.01098]
[1767814660137,0.09163902,91181.0,91171.0,0.01098]
[1767814660138,0.09742446,91180.0,91171.0,0.01098]
[1767814660342,0.09742446,91179.0,91168.0,0.01098]
[1767814660544,0.09742446,91179.0,91170.0,0.01098]
[1767814661255,0.09742446,91178.0,91162.0,0.09332]
[1767814661445,0.09742446,91178.0,91166.0,0.01098]
[1767814664356,0.18906348,91178.0,91163.0,0.010981]
[1767814664559,0.09742446,91177.0,91163.0,0.010981]
[1767814664765,0.09742446,91175.0,91162.0,0.09332]
[1767814665450,0.09742446,91175.0,91157.0,0.07887686]
[1767814665451,0.09742446,91168.0,91156.0,0.07887686]
[1767814665651,0.09742446,91168.0,91155.0,0.09332]
[1767814666853,0.09742446,91168.0,91156.0,0.010982]
[1767814667058,0.09742446,91168.0,91155.0,0.09332]
[1767814667245,0.09742446,91168.0,91159.0,0.010981]
[1767814668262,0.09163902,91174.0,91160.0,0.07887686]
[1767814668558,0.09332,91185.0,91160.0,0.01461951]
[1767814668760,0.09332,91185.0,91162.0,0.01461951]
[1767814668956,0.010979,91181.0,91164.0,0.01098]
[1767814669847,0.010979,91179.0,91161.0,0.010981]
[1767814670546,0.18906348,91179.0,91159.0,0.010981]
[1767814670751,0.010979,91176.0,91158.0,0.010981]
[1767814671051,0.01098,91173.0,91156.0,0.1096852]
[1767814671246,0.01098,91173.0,91155.0,0.10958928]
[1767814671448,0.01098,91173.0,91156.0,0.10968881]
[1767814671651,0.01098,91173.0,91157.0,0.010981]
[1767814671861,0.09742446,91177.0,91159.0,0.010981]
[1767814673257,0.10840346,91176.0,91159.0,0.010981]
[1767814674463,0.09742446,91176.0,91159.0,0.010981]
[1767814674767,0.09742446,91183.0,91160.0,0.00342822]
[1767814674968,1e-06,91190.0,91162.0,0.09151323]
[1767814675265,0.09163902,91201.0,91184.0,0.010978]
[1767814675455,0.09163902,91201.0,91170.0,0.09151323]
[1767814675456,0.09742446,91202.0,91187.0,0.010978]
[1767814675759,0.09332,91210.0,91191.0,0.010977]
[1767814675968,0.09332,91210.0,91187.0,0.010978]
[1767814676153,0.09332,91210.0,91193.0,0.010977]
[1767814676555,0.09332,91210.0,91189.0,0.010978]
[1767814677356,0.09163902,91209.0,91189.0,0.010978]
[1767814677557,0.09742446,91208.0,91192.0,0.010977]
[1767814677767,0.09742446,91206.0,91192.0,0.010977]
[1767814678060,0.09163902,91205.0,91192.0,0.010977]
[1767814678366,0.18906348,91204.0,91192.0,0.010977]
[1767814678567,0.18906348,91202.0,91192.0,0.010977]
[1767814680261,0.18906348,91202.0,91185.0,0.01315902]
[1767814680464,0.18906348,91202.0,91184.0,0.010978]
[1767814680663,0.09332,91210.0,91187.0,0.09151323]
[1767814680866,0.09742446,91223.0,91203.0,0.010976]
[1767814681065,0.09163902,91220.0,91204.0,0.09332]
[1767814681360,0.09742446,91221.0,91204.0,0.09332]
[1767814681752,0.18495902,91225.0,91204.0,0.09332]
[1767814681965,0.27914466,91225.0,91204.0,0.09332]
[1767814682166,0.19254969,91223.0,91204.0,0.09332]
[1767814682468,0.18495902,91225.0,91204.0,0.09332]
[1767814682469,0.19254969,91222.0,91204.0,0.09332]
[1767814682656,0.09418564,91218.0,91204.0,0.09332]
[1767814682862,0.09418564,91214.0,91204.0,0.09332]
[1767814683459,0.09332,91225.0,91182.0,0.09786694]
[1767814683460,0.09836405,91206.0,91182.0,0.09786694]
[1767814683770,0.104293,91225.0,91172.0,7.943e-05]
[1767814683771,0.09418564,91196.0,91185.0,0.09332]
[1767814683969,0.09418564,91196.0,91175.0,0.09820796]
[1767814684272,0.09418564,91196.0,91182.0,0.1096383]
[1767814684570,0.010976,91199.0,91176.0,0.28571951]
[1767814684770,0.010976,91199.0,91176.0,0.29669851]
[1767814684971,0.010976,91199.0,91178.0,0.010979]
[1767814685269,0.010976,91201.0,91178.0,0.010979]
[1767814685662,0.010976,91201.0,91179.0,0.10966295]
[1767814685862,0.010976,91201.0,91180.0,0.010979]
[1767814686470,0.010976,91201.0,91181.0,0.10966054]
[1767814686666,0.010975,91211.0,91190.0,0.19243951]
[1767814686862,0.010975,91214.0,91193.0,0.19243951]
[1767814687269,0.010975,91214.0,91194.0,0.30210005]
[1767814687672,0.010975,91214.0,91194.0,0.19243951]
[1767814688072,0.09836405,91220.0,91195.0,0.010977]
[1767814688269,0.010974,91223.0,91202.0,0.010976]
[1767814688476,0.010974,91220.0,91202.0,0.09328]
[1767814688973,0.010974,91218.0,91202.0,0.09328]
[1767814689572,0.010974,91221.0,91202.0,0.09328]
[1767814691367,0.010974,91219.0,91202.0,0.09328]
[1767814691569,0.010974,91215.0,91202.0,0.09328]
[1767814691874,0.19254969,91211.0,91192.0,0.06110038]
[1767814692074,0.19254969,91208.0,91193.0,0.09328]
[1767814692474,0.09418564,91208.0,91193.0,0.09328]
[1767814692676,0.010975,91210.0,91193.0,0.09328]
[1767814693072,0.09836405,91214.0,91193.0,0.09328]
[1767814693073,0.010975,91213.0,91193.0,0.09328]
[1767814693271,0.010975,91213.0,91193.0,0.18751155]
[1767814694477,0.010975,91213.0,91193.0,0.09423155]
[1767814694770,0.010975,91213.0,91194.0,0.09328]
[1767814694982,0.010976,91206.0,91194.0,0.09328]
[1767814695271,0.010976,91206.0,91187.0,0.06184624]
[1767814695272,0.010976,91204.0,91187.0,0.06184624]
[1767814695474,0.010976,91204.0,91188.0,0.09328]
[1767814695676,0.010976,91202.0,91189.0,0.10964912]
[1767814695978,0.010976,91202.0,91188.0,0.09328]
[1767814695979,0.010976,91205.0,91188.0,0.09328]
[1767814696275,0.19254969,91207.0,91189.0,0.10964912]
[1767814696471,0.010976,91199.0,91189.0,0.10964912]
[1767814696687,0.010976,91199.0,91189.0,0.09328]
[1767814697176,0.09418564,91201.0,91189.0,0.09328]
[1767814697369,0.19254969,91196.0,91183.0,0.09328]
[1767814697563,0.010975,91211.0,91177.0,0.06118548]
[1767814697564,0.19254969,91195.0,91177.0,0.06118548]
[1767814697768,0.010977,91192.0,91178.0,0.09328]
[1767814698074,0.010977,91192.0,91179.0,0.09328]
[1767814698675,0.20352769,91188.0,91172.0,0.14671247]
[1767814698869,0.20352769,91188.0,91173.0,0.09328]
[1767814699068,0.20352769,91188.0,91174.0,0.10966655]
[1767814699266,0.20352769,91188.0,91173.0,0.09328]
[1767814699767,0.20352769,91188.0,91174.0,0.20295197]